bitfinex/quotes_BTCUSD_20240703
["timestamp","ask_amount","ask_price","bid_price","bid_amount"]
[1720010101514,0.30184,60187.0,60186.0,0.85544406]
[1720010101755,0.18074,60187.0,60186.0,0.85544406]
[1720010102033,0.0002,60210.0,60186.0,0.85544406]
[1720010102034,0.0002,60210.0,60209.0,0.03312066]
[1720010102865,0.02319149,60210.0,60209.0,0.03312066]
[1720010103760,0.02319149,60210.0,60209.0,0.25341946]
[1720010104685,0.02319149,60210.0,60209.0,0.19341946]
[1720010105176,0.03733439,60210.0,60209.0,0.25341946]
[1720010105401,0.03733439,60210.0,60209.0,0.19341946]
[1720010105645,0.03733439,60210.0,60209.0,0.03412066]
[1720010105646,0.03733807,60210.0,60209.0,0.03412066]
[1720010106267,0.03833807,60210.0,60209.0,0.04412066]
[1720010106497,0.03833807,60210.0,60209.0,0.04312066]
[1720010106498,0.02433807,60210.0,60209.0,0.04312066]
[1720010106712,0.02433807,60210.0,60209.0,0.26341946]
[1720010106920,0.02433807,60210.0,60209.0,0.20341946]
[1720010107176,0.02433807,60210.0,60209.0,0.40886141]
[1720010107379,0.02433807,60210.0,60209.0,0.38251946]
[1720010107714,0.03133807,60210.0,60209.0,0.37251946]
[1720010108097,0.03168864,60210.0,60209.0,0.53231946]
[1720010108319,0.00104,60237.0,60236.0,0.03312066]
[1720010108519,0.07300756,60237.0,60236.0,0.03312066]
[1720010108738,0.07300756,60237.0,60222.0,0.1602988]
[1720010108739,0.06,60233.0,60224.0,0.03312066]
[1720010108940,0.08015582,60226.0,60224.0,0.03312066]
[1720010109153,0.2989,60225.0,60224.0,0.03312066]
[1720010109367,0.11,60224.0,60221.0,0.03312066]
[1720010109575,0.2989,60222.0,60221.0,0.03312066]
[1720010109798,0.3989,60222.0,60220.0,0.03312066]
[1720010110206,0.3989,60222.0,60221.0,0.03312066]
[1720010112189,0.3989,60222.0,60221.0,0.03412066]
[1720010112389,0.3989,60222.0,60221.0,0.03512066]
[1720010112789,0.3989,60222.0,60221.0,0.03412066]
[1720010113620,0.4019,60222.0,60221.0,0.03412066]
[1720010113821,0.4019,60222.0,60221.0,0.01380779]
[1720010114639,0.4019,60222.0,60221.0,0.01280779]
[1720010114858,0.1,60222.0,60221.0,0.01280779]
[1720010115089,0.003,60222.0,60221.0,0.17310659]
[1720010115319,0.005,60222.0,60221.0,0.42807999]
[1720010115530,0.002,60222.0,60221.0,0.42807999]
[1720010115740,0.00104,60237.0,60236.0,0.01280779]
[1720010116604,0.02000494,60237.0,60236.0,0.01280779]
[1720010117030,0.03701808,60237.0,60236.0,0.01280779]
[1720010117235,0.03702473,60237.0,60236.0,0.01280779]
[1720010117443,0.02001159,60237.0,60236.0,0.01280779]
[1720010117656,0.00104,60237.0,60236.0,0.01280779]
[1720010118947,0.00904,60237.0,60236.0,0.01380779]
[1720010119188,0.06717099,60237.0,60236.0,0.002]
[1720010119394,0.01604,60237.0,60236.0,0.01480779]
[1720010120266,0.1,60239.0,60236.0,0.01480779]
[1720010120543,0.09458649,60241.0,60236.0,0.002]
[1720010120753,0.018205,60240.0,60236.0,0.002]
[1720010120961,0.09458649,60241.0,60236.0,0.002]
[1720010120962,0.018205,60239.0,60236.0,0.002]
[1720010121174,0.09458649,60241.0,60236.0,0.002]
[1720010121394,0.01872347,60240.0,60236.0,0.002]
[1720010121600,0.2282,60245.0,60236.0,0.002]
[1720010121601,0.20769088,60245.0,60236.0,0.001]
[1720010121804,0.2989,60238.0,60236.0,0.001]
[1720010122041,0.2989,60238.0,60236.0,0.002]
[1720010122262,0.1,60237.0,60236.0,0.001]
[1720010122474,0.1,60237.0,60236.0,0.01380779]
[1720010122691,0.1,60244.0,60237.0,0.01280779]
[1720010122893,0.0002,60248.0,60239.0,0.07280779]
[1720010123097,0.0002,60248.0,60241.0,0.01280779]
[1720010124141,0.0002,60248.0,60241.0,0.01270779]
[1720010124349,0.2989,60242.0,60241.0,0.01270779]
[1720010124555,0.3989,60242.0,60241.0,0.01270779]
[1720010125383,0.3989,60242.0,60241.0,0.01370779]
[1720010125559,0.1,60242.0,60241.0,0.01370779]
[1720010125821,0.2989,60246.0,60241.0,0.01270779]
[1720010126038,0.1,60245.0,60241.0,0.01270779]
[1720010127394,0.1,60245.0,60244.0,0.01270779]
[1720010127598,0.0002,60248.0,60244.0,0.01270779]
[1720010128042,0.0002,60248.0,60244.0,0.01260779]
[1720010128658,0.0002,60248.0,60247.0,0.01260779]
[1720010129595,0.0022,60248.0,60247.0,0.01260779]
[1720010129747,0.0002,60248.0,60247.0,0.01260779]
[1720010130191,0.0002,60248.0,60247.0,0.01560779]
[1720010130394,0.0002,60248.0,60247.0,0.01260779]
[1720010130634,0.0002,60248.0,60235.0,0.1513]
[1720010130635,0.0002,60248.0,60245.0,0.01260779]
[1720010130860,0.0002,60248.0,60235.0,0.1513]
[1720010130861,0.2989,60246.0,60244.0,0.01260779]
[1720010131070,0.2686,60244.0,60242.0,0.01260779]
[1720010131447,0.1,60243.0,60242.0,0.01260779]
[1720010132472,0.1,60244.0,60242.0,0.01260779]
[1720010132784,0.1,60244.0,60242.0,0.01560779]
[1720010133568,0.1,60244.0,60229.0,0.1543]
[1720010133569,0.06,60239.0,60229.0,0.01260779]
[1720010133772,0.2989,60237.0,60229.0,0.01260779]
[1720010133976,0.41622755,60237.0,60229.0,0.01260779]
[1720010134127,0.47622755,60237.0,60228.0,0.01260779]
[1720010134331,0.41622755,60237.0,60236.0,0.0001]
[1720010134538,0.57120445,60237.0,60236.0,0.0001]
[1720010134715,0.73150325,60237.0,60236.0,0.0001]
[1720010136060,0.57652635,60237.0,60236.0,0.0001]
[1720010136257,0.57652635,60237.0,60236.0,0.0011]
[1720010136258,0.41622755,60237.0,60236.0,0.0011]
[1720010136818,0.41922755,60237.0,60236.0,0.0021]
[1720010137022,0.47922755,60237.0,60236.0,0.0021]
[1720010137223,0.63652635,60237.0,60236.0,0.0011]
[1720010137435,0.72647898,60237.0,60236.0,0.0011]
[1720010137574,0.66647898,60237.0,60236.0,0.0011]
[1720010137777,0.72647898,60237.0,60236.0,0.0011]
[1720010137986,0.98527898,60237.0,60236.0,0.0011]
[1720010138209,1.07501712,60237.0,60236.0,0.0021]
[1720010138414,1.67491712,60237.0,60236.0,0.0021]
[1720010138618,1.37491712,60237.0,60236.0,0.0021]
[1720010138830,1.37491712,60237.0,60236.0,0.002024]
[1720010139072,1.37491712,60237.0,60236.0,0.003024]
[1720010139459,1.37191712,60237.0,60236.0,0.002024]
[1720010139662,1.28196449,60237.0,60236.0,0.001024]
[1720010139868,1.28496449,60237.0,60236.0,0.003024]
[1720010140324,1.28196449,60237.0,60236.0,0.002024]
[1720010140491,1.28196449,60237.0,60236.0,0.003024]
[1720010140663,1.28496449,60237.0,60236.0,0.003024]
[1720010140883,0.98506449,60237.0,60236.0,0.003024]
[1720010141084,0.90206449,60237.0,60236.0,0.003024]
[1720010141285,0.96206449,60237.0,60236.0,0.003024]
[1720010141487,0.96321634,60237.0,60236.0,0.003024]
[1720010141786,0.96321634,60237.0,60236.0,0.00298265]
[1720010141787,1.1235794,60237.0,60236.0,0.00298265]
[1720010141982,1.12357263,60237.0,60236.0,0.00198265]
[1720010142189,1.12357263,60237.0,60236.0,0.00298265]
[1720010142190,1.14657263,60237.0,60236.0,0.00298265]
[1720010142571,0.48711077,60237.0,60236.0,0.00298265]
[1720010142765,0.73861077,60237.0,60236.0,0.00098265]
[1720010142965,0.74161077,60237.0,60236.0,0.00298265]
[1720010143404,0.96190957,60237.0,60236.0,0.00198265]
[1720010143599,0.96490957,60237.0,60236.0,0.00298265]
[1720010143966,1.04942282,60237.0,60236.0,0.00298265]
[1720010144145,1.04642282,60237.0,60236.0,0.00198265]
[1720010144376,1.04942282,60237.0,60236.0,0.00298265]
[1720010145201,1.04942282,60237.0,60236.0,0.00198265]
[1720010145202,0.84200957,60237.0,60236.0,0.00198265]
[1720010145405,0.42721077,60237.0,60236.0,0.00298265]
[1720010145625,0.18821077,60237.0,60236.0,0.00298265]
[1720010145837,0.08821077,60237.0,60236.0,0.00298265]
[1720010146046,0.02104649,60237.0,60236.0,0.00198265]
[1720010146256,0.06992203,60237.0,60236.0,0.00198265]
[1720010146462,0.08496852,60237.0,60236.0,0.00198265]
[1720010146882,0.08796852,60237.0,60236.0,0.16168265]
[1720010147081,0.08796852,60237.0,60236.0,0.16068265]
[1720010147484,0.02365643,60237.0,60236.0,0.16168265]
[1720010148104,0.02365643,60237.0,60236.0,0.00198265]
[1720010148262,0.01765643,60237.0,60236.0,0.00098265]
[1720010148465,0.01765643,60237.0,60236.0,0.00198265]
[1720010148929,0.01765643,60237.0,60236.0,0.00098265]
[1720010149402,0.01765643,60237.0,60236.0,0.00198265]
[1720010149821,0.02065643,60237.0,60236.0,0.00298265]
[1720010150942,0.02062844,60237.0,60236.0,0.00298265]
[1720010151873,0.1646917,60237.0,60236.0,0.00298265]
[1720010152154,0.12232014,60237.0,60236.0,0.00298265]
[1720010152405,0.43026412,60237.0,60236.0,0.00298265]
[1720010152659,0.28232014,60237.0,60236.0,0.00298265]
[1720010152901,0.28232014,60237.0,60228.0,0.01260779]
[1720010152902,0.06,60233.0,60228.0,0.01260779]
[1720010153143,0.3822733,60232.0,60223.0,0.01260779]
[1720010153373,0.3822733,60232.0,60221.0,0.131]
[1720010153374,0.239,60227.0,60225.0,0.01260779]
[1720010153597,0.35662844,60227.0,60223.0,0.01260779]
[1720010153885,0.339,60227.0,60223.0,0.01260779]
[1720010154122,0.41843582,60227.0,60223.0,0.01260779]
[1720010154359,0.41843972,60227.0,60223.0,0.01260779]
[1720010156258,0.42143972,60227.0,60223.0,0.01260779]
[1720010156535,0.44129143,60227.0,60223.0,0.01260779]
[1720010156791,0.44329143,60227.0,60223.0,0.01260779]
[1720010157081,0.44181461,60227.0,60223.0,0.01260779]
[1720010157329,0.4219629,60227.0,60223.0,0.01260779]
[1720010160177,0.42200653,60227.0,60223.0,0.01260779]
[1720010162830,0.42556879,60227.0,60226.0,0.30532509]
[1720010163079,0.42556879,60227.0,60226.0,0.36532509]
[1720010163312,0.42556879,60227.0,60226.0,0.30532509]
[1720010164940,0.42556879,60227.0,60226.0,0.36532509]
[1720010165579,0.49203282,60227.0,60226.0,0.36532509]
[1720010165782,0.50867075,60227.0,60226.0,0.36532509]
[1720010165989,0.36063793,60227.0,60226.0,0.4018676]
[1720010166166,0.105,60227.0,60226.0,0.52562389]
[1720010166416,0.12244949,60227.0,60226.0,0.52562389]
[1720010167876,0.02244949,60227.0,60226.0,0.52562389]
[1720010168080,0.12244949,60227.0,60226.0,0.46562389]
[1720010168281,0.36144949,60227.0,60226.0,0.52562389]
[1720010168457,0.36164215,60227.0,60226.0,0.52562389]
[1720010169284,0.35864215,60227.0,60226.0,0.52562389]
[1720010169487,0.35864215,60227.0,60226.0,0.30532509]
[1720010169690,0.35864215,60227.0,60226.0,0.31032509]
[1720010169691,0.42519381,60227.0,60226.0,0.31032509]
[1720010169907,0.42319381,60227.0,60226.0,0.31032509]
[1720010170105,0.10473341,60227.0,60226.0,0.31632509]
[1720010170381,0.10473341,60227.0,60226.0,0.02432509]
[1720010170591,0.10473341,60227.0,60226.0,0.01932509]
[1720010171004,0.10373341,60227.0,60226.0,0.01332509]
[1720010171415,0.10373341,60227.0,60226.0,0.01832509]
[1720010171615,0.10373341,60227.0,60226.0,0.01332509]
[1720010171616,0.26838312,60227.0,60226.0,0.01332509]
[1720010172046,0.27138312,60227.0,60226.0,0.01332509]
[1720010172182,0.37138312,60227.0,60226.0,0.01332509]
[1720010172387,0.2049936,60227.0,60226.0,0.01332509]
[1720010172585,0.2019936,60227.0,60226.0,0.01332509]
[1720010172991,0.37138312,60227.0,60226.0,0.01332509]
[1720010173196,0.37438312,60227.0,60226.0,0.0007173]
[1720010173396,0.25143191,60227.0,60226.0,0.0007173]
[1720010173653,0.25143191,60227.0,60226.0,0.0016413]
[1720010174217,0.2049936,60227.0,60226.0,0.0016413]
[1720010174424,0.2049936,60227.0,60210.0,0.06]
[1720010174425,0.06,60220.0,60213.0,0.01260779]
[1720010174623,0.16666529,60215.0,60213.0,0.01260779]
[1720010174912,0.25560651,60214.0,60211.0,0.01260779]
[1720010175189,0.239,60212.0,60209.0,0.01260779]
[1720010175422,0.16664539,60210.0,60209.0,0.01260779]
[1720010175573,0.08249338,60210.0,60209.0,0.01260779]
[1720010175783,0.08249338,60210.0,60208.0,0.01260779]
[1720010175984,0.08249338,60210.0,60209.0,0.01260779]
[1720010176228,0.32149338,60210.0,60209.0,0.01260779]
[1720010176424,0.42149338,60210.0,60209.0,0.01260779]
[1720010176586,0.42149338,60210.0,60208.0,0.01260779]
[1720010176792,0.40484749,60210.0,60209.0,0.01260779]
[1720010177035,0.42160001,60210.0,60209.0,0.01260779]
[1720010177183,0.42560001,60210.0,60209.0,0.01260779]
[1720010177620,0.343,60210.0,60209.0,0.01260779]
[1720010177822,0.42572786,60210.0,60209.0,0.01260779]
[1720010178026,0.42172786,60210.0,60209.0,0.01260779]
[1720010178234,0.42574272,60210.0,60209.0,0.01260779]
[1720010178423,0.42974272,60210.0,60209.0,0.01260779]
[1720010180371,0.47271699,60210.0,60208.0,0.01260779]
[1720010180571,0.11672824,60209.0,60202.0,0.13520779]
[1720010180892,0.40553703,60203.0,60198.0,0.01260779]
[1720010181137,0.40553703,60203.0,60195.0,0.1245]
[1720010181138,0.1665146,60200.0,60199.0,0.01260779]
[1720010181380,0.1665146,60200.0,60195.0,0.1245]
[1720010181381,0.1,60202.0,60201.0,0.01260779]
[1720010181589,0.1,60202.0,60199.0,0.01260779]
[1720010181590,0.35617128,60202.0,60199.0,0.01260779]
[1720010181838,0.1,60202.0,60201.0,0.01260779]
[1720010182003,0.35711199,60202.0,60201.0,0.01260779]
[1720010182223,0.35711199,60202.0,60195.0,0.1245]
[1720010182224,0.42312647,60202.0,60199.0,0.01260779]
[1720010182451,0.239,60200.0,60199.0,0.01260779]
[1720010182674,0.35711199,60200.0,60199.0,0.01260779]
[1720010182885,0.35711199,60200.0,60199.0,0.01860779]
[1720010183089,0.35711199,60200.0,60199.0,0.006]
[1720010183290,0.35711199,60200.0,60199.0,0.01860779]
[1720010183484,0.35711199,60200.0,60199.0,0.01260779]
[1720010183723,0.35711199,60200.0,60198.0,0.01260779]
[1720010183930,0.1,60199.0,60198.0,0.01260779]
[1720010184078,0.11811787,60199.0,60198.0,0.01260779]
[1720010184291,0.11801787,60199.0,60198.0,0.01260779]
[1720010185965,0.11791787,60199.0,60198.0,0.01260779]
[1720010186388,0.18439179,60199.0,60198.0,0.01260779]
[1720010186592,0.18439179,60199.0,60197.0,0.01260779]
[1720010186799,0.16627392,60199.0,60198.0,0.01260779]
[1720010187000,0.11762833,60199.0,60198.0,0.01260779]
[1720010187208,0.11762833,60199.0,60196.0,0.01260779]
[1720010187209,0.12162833,60199.0,60196.0,0.01260779]
[1720010187416,0.12162833,60199.0,60184.0,0.01260779]
[1720010187417,0.14015582,60197.0,60184.0,0.01260779]
[1720010187627,0.239,60185.0,60184.0,0.01260779]
[1720010187837,0.239,60185.0,60182.0,0.01260779]
[1720010187838,0.25682833,60185.0,60182.0,0.01260779]
[1720010188069,0.25682833,60185.0,60178.0,0.4715425]
[1720010188070,0.11782833,60184.0,60181.0,0.01260779]
[1720010188286,0.25682833,60183.0,60181.0,0.01260779]
[1720010188552,0.1,60184.0,60183.0,0.01260779]
[1720010188796,0.1,60184.0,60183.0,0.36200659]
[1720010189088,0.1,60184.0,60183.0,0.51930659]
[1720010189792,0.1,60196.0,60188.0,0.06]
[1720010189996,0.01773351,60195.0,60189.0,0.1832]
[1720010190235,0.01773351,60194.0,60189.0,0.1832]
[1720010190454,0.1,60196.0,60194.0,0.01260779]
[1720010190656,0.01772968,60195.0,60194.0,0.01260779]
[1720010191615,0.01762968,60195.0,60194.0,0.01260779]
[1720010191817,0.09980019,60196.0,60194.0,0.01260779]
[1720010193062,0.09980019,60196.0,60189.0,0.1232]
[1720010193063,0.18095601,60196.0,60193.0,0.01260779]
[1720010193266,0.18095601,60196.0,60186.0,0.01260779]
[1720010193267,0.3168,60193.0,60186.0,0.01260779]
[1720010193529,0.3168,60193.0,60189.0,0.01260779]
[1720010193639,0.239,60190.0,60189.0,0.01260779]
[1720010193848,0.239,60190.0,60187.0,0.01260779]
[1720010194065,0.239,60188.0,60187.0,0.01260779]
[1720010194303,0.339,60188.0,60187.0,0.01260779]
[1720010194520,0.339,60188.0,60185.0,0.01260779]
[1720010194731,0.1,60187.0,60185.0,0.01260779]
[1720010194930,0.1,60187.0,60182.0,0.01260779]
[1720010195137,0.239,60183.0,60182.0,0.01260779]
[1720010195356,0.339,60183.0,60182.0,0.01260779]
[1720010196179,0.1,60183.0,60182.0,0.01260779]
[1720010196432,0.415758,60183.0,60179.0,0.01260779]
[1720010196691,0.1,60182.0,60179.0,0.01260779]
[1720010197832,0.002,60183.0,60182.0,0.01260779]
[1720010198086,0.007,60187.0,60182.0,0.01360779]
[1720010198325,0.0069,60187.0,60183.0,0.07260779]
[1720010198553,0.0069,60187.0,60186.0,0.06]
[1720010198786,0.3987,60200.0,60186.0,0.1223]
[1720010199029,0.239,60198.0,60186.0,0.1223]
[1720010199264,0.239,60197.0,60186.0,0.1223]
[1720010199501,0.29998741,60197.0,60186.0,0.1223]
[1720010199726,0.12061958,60196.0,60186.0,0.1223]
[1720010199953,0.02061958,60195.0,60186.0,0.1222]
[1720010200155,0.02061958,60195.0,60186.0,0.1232]
[1720010200338,0.02061958,60195.0,60186.0,0.1832]
[1720010200541,0.02061958,60195.0,60186.0,0.1232]
[1720010201127,0.02061958,60195.0,60186.0,0.17500066]
[1720010201356,0.03061958,60195.0,60189.0,0.06]
[1720010201562,0.02061958,60194.0,60189.0,0.06]
[1720010201769,0.02061958,60193.0,60189.0,0.06]
[1720010201971,0.01,60195.0,60187.0,0.01260779]
[1720010202384,0.02049642,60194.0,60188.0,0.06]
[1720010202501,0.02049642,60194.0,60187.0,0.01260779]
[1720010202502,0.02049642,60193.0,60187.0,0.01260779]
[1720010202704,0.02049081,60192.0,60189.0,0.001]
[1720010202904,0.02049081,60191.0,60189.0,0.001]
[1720010203148,0.01,60195.0,60187.0,0.01260779]
[1720010203495,0.02047718,60194.0,60187.0,0.01260779]
[1720010203675,0.02047718,60193.0,60187.0,0.01260779]
[1720010203815,0.02047718,60192.0,60189.0,0.06]
[1720010204015,0.02047718,60191.0,60189.0,0.06]
[1720010204254,0.0003,60202.0,60197.0,0.01260779]
[1720010204470,0.0003,60202.0,60198.0,0.1361]
[1720010204471,0.02098638,60201.0,60198.0,0.1361]
[1720010204669,0.02098638,60200.0,60198.0,0.1361]
[1720010204866,0.02098638,60199.0,60198.0,0.1361]
[1720010205280,0.0003,60202.0,60198.0,0.1361]
[1720010205281,0.02098696,60201.0,60198.0,0.1361]
[1720010205683,0.02098696,60201.0,60197.0,0.01260779]
[1720010205684,0.02101698,60200.0,60197.0,0.01260779]
[1720010205884,0.239,60198.0,60197.0,0.01260779]
[1720010206089,0.239,60198.0,60192.0,0.01260779]
[1720010206090,0.36001698,60198.0,60192.0,0.01260779]
[1720010206432,0.36001698,60198.0,60189.0,0.1664]
[1720010206433,0.239,60193.0,60190.0,0.01260779]
[1720010206548,0.239,60193.0,60192.0,0.01260779]
[1720010206756,0.35964921,60193.0,60192.0,0.01260779]
[1720010207206,0.35964921,60193.0,60189.0,0.17900779]
[1720010207416,0.339,60193.0,60192.0,0.01260779]
[1720010207672,0.35944952,60193.0,60192.0,0.01260779]
[1720010207875,0.36044952,60193.0,60192.0,0.01260779]
[1720010208278,0.35944952,60193.0,60192.0,0.01260779]
[1720010208822,0.35944952,60193.0,60191.0,0.01260779]
[1720010209038,0.12044952,60192.0,60189.0,0.01260779]
[1720010209241,0.1,60192.0,60191.0,0.01260779]
[1720010209447,0.11931003,60192.0,60191.0,0.01260779]
[1720010209649,0.11931003,60192.0,60189.0,0.01260779]
[1720010209977,0.01931003,60191.0,60190.0,0.01260779]
[1720010210199,0.25831003,60191.0,60190.0,0.01260779]
[1720010210379,0.35831003,60191.0,60190.0,0.01260779]
[1720010211444,0.0409122,60191.0,60190.0,0.01260779]
[1720010211643,0.02526423,60191.0,60190.0,0.01260779]
[1720010213478,0.02626423,60191.0,60190.0,0.01260779]
[1720010213825,0.02726423,60191.0,60190.0,0.01260779]
[1720010214236,0.26626423,60191.0,60190.0,0.01260779]
[1720010214458,0.36726423,60191.0,60190.0,0.01260779]
[1720010214663,0.36532393,60191.0,60190.0,0.01260779]
[1720010215042,0.342,60191.0,60190.0,0.01260779]
[1720010215226,0.36532285,60191.0,60189.0,0.01260779]
[1720010215425,0.23033569,60190.0,60186.0,0.01260779]
[1720010215642,0.02201904,60189.0,60187.0,0.01260779]
[1720010215896,0.239,60188.0,60187.0,0.01260779]
[1720010216094,0.36101904,60188.0,60187.0,0.01260779]
[1720010216518,0.36101904,60188.0,60181.0,0.01260779]
[1720010216519,0.69165261,60188.0,60181.0,0.01260779]
[1720010216720,0.239,60182.0,60181.0,0.01260779]
[1720010216960,0.36101904,60182.0,60181.0,0.01260779]
[1720010218139,0.43280341,60182.0,60181.0,0.01560779]
[1720010219538,0.36101904,60182.0,60181.0,0.01860779]
[1720010221399,0.73100834,60182.0,60181.0,0.006]
[1720010221602,0.79100834,60182.0,60181.0,0.006]
[1720010222415,0.91520524,60182.0,60181.0,0.006]
[1720010223290,1.0841988,60182.0,60181.0,0.006]
[1720010223517,1.17785299,60182.0,60181.0,0.003]
[1720010223662,1.48475299,60182.0,60181.0,0.004]
[1720010223867,2.1166853,60182.0,60181.0,0.004]
[1720010224075,0.3599,60178.0,60177.0,0.28175628]
[1720010224268,1.24205196,60178.0,60177.0,0.28175628]
[1720010224503,1.68356739,60178.0,60177.0,0.28175628]
[1720010224629,2.10242369,60178.0,60177.0,0.28175628]
[1720010224829,1.95240826,60178.0,60177.0,0.28171592]
[1720010225471,1.95240826,60178.0,60166.0,0.0120897]
[1720010225472,0.6599,60170.0,60166.0,0.0120897]
[1720010225666,1.19648459,60170.0,60166.0,0.0120897]
[1720010225892,1.41938459,60170.0,60166.0,0.0120897]
[1720010226049,1.29015727,60170.0,60166.0,0.0120897]
[1720010226255,1.56916266,60170.0,60166.0,0.0120897]
[1720010226496,1.66264279,60170.0,60166.0,0.0120897]
[1720010226650,1.67974279,60170.0,60166.0,0.0120897]
[1720010226879,0.1592741,60169.0,60126.0,0.3]
[1720010227172,0.1592741,60169.0,60131.0,0.48093494]
[1720010227173,0.239,60137.0,60131.0,0.48093494]
[1720010227338,0.31292566,60137.0,60131.0,0.48093494]
[1720010227559,0.37950603,60137.0,60134.0,0.1281]
[1720010227720,0.3607933,60137.0,60134.0,0.1281]
[1720010227922,0.339,60137.0,60134.0,0.1281]
[1720010228134,0.10145464,60137.0,60136.0,0.04547227]
[1720010228328,0.1,60137.0,60136.0,0.004185]
[1720010228534,0.1,60137.0,60136.0,0.04547227]
[1720010228844,0.1,60141.0,60137.0,0.03]
[1720010229073,0.1,60141.0,60136.0,0.004185]
[1720010229233,0.1,60141.0,60136.0,0.00276278]
[1720010229435,0.0165,60153.0,60140.0,0.48093494]
[1720010229655,0.01871273,60165.0,60139.0,0.03]
[1720010229656,0.01871273,60165.0,60152.0,0.1663]
[1720010229877,0.239,60158.0,60153.0,0.03332446]
[1720010230093,0.239,60163.0,60157.0,0.157]
[1720010230353,0.239,60163.0,60158.0,0.03]
[1720010230564,0.239,60163.0,60160.0,0.03]
[1720010230784,0.239,60163.0,60158.0,0.16362315]
[1720010230785,0.239,60163.0,60162.0,0.192]
[1720010231058,0.7,60179.0,60162.0,0.192]
[1720010231059,0.01871273,60182.0,60166.0,0.03]
[1720010231276,0.01871273,60182.0,60160.0,0.03319104]
[1720010231277,0.239,60172.0,60170.0,0.2962]
[1720010233398,0.26477127,60172.0,60170.0,0.2962]
[1720010233640,0.18015582,60171.0,60166.0,0.1331]
[1720010234069,0.239,60167.0,60166.0,0.1331]
[1720010234290,0.339,60167.0,60166.0,0.1331]
[1720010235052,0.01871273,60166.0,60161.0,0.1347]
[1720010235308,0.01871273,60166.0,60160.0,0.4715425]
[1720010235309,0.239,60162.0,60160.0,0.4715425]
[1720010235540,0.1,60161.0,60160.0,0.4715425]
[1720010237390,0.28921273,60161.0,60160.0,0.4715425]
[1720010237616,0.12195414,60161.0,60160.0,0.4725425]
[1720010238098,0.1,60161.0,60160.0,0.6004425]
[1720010238356,0.101,60161.0,60160.0,0.7671425]
[1720010238604,0.1,60161.0,60160.0,1.04457155]
[1720010238817,0.239,60174.0,60167.0,0.1259]
[1720010239047,0.1,60173.0,60168.0,0.1632]
[1720010239263,0.02184129,60172.0,60168.0,0.1632]
[1720010239479,0.15261273,60173.0,60168.0,0.1632]
[1720010239712,0.02222371,60172.0,60168.0,0.1632]
[1720010239976,0.239,60169.0,60167.0,0.1259]
[1720010240195,0.239,60174.0,60170.0,0.03]
[1720010240439,0.02222452,60173.0,60170.0,0.03]
[1720010240624,0.02222452,60172.0,60170.0,0.03]
[1720010240873,0.02239176,60171.0,60170.0,0.03]
[1720010241110,0.02239176,60171.0,60167.0,0.1259]
[1720010241343,0.239,60174.0,60169.0,0.08015582]
[1720010241570,0.239,60183.0,60173.0,0.1273]
[1720010241838,0.01871273,60180.0,60174.0,0.1602988]
[1720010242090,0.01871273,60180.0,60173.0,0.1273]
[1720010242091,0.239,60178.0,60173.0,0.1273]
[1720010242520,0.01962226,60177.0,60173.0,0.1273]
[1720010242789,0.01962226,60176.0,60173.0,0.1273]
[1720010243037,0.01962226,60175.0,60173.0,0.1273]
[1720010243261,0.01962226,60174.0,60173.0,0.1273]
[1720010243774,0.239,60178.0,60173.0,0.2875988]
[1720010244001,0.11935799,60177.0,60174.0,0.1602988]
[1720010244228,0.01935799,60176.0,60174.0,0.1602988]
[1720010244690,0.1,60177.0,60174.0,0.1602988]
[1720010244935,0.01927187,60176.0,60174.0,0.1602988]
[1720010245201,0.07568306,60176.0,60169.0,0.1575]
[1720010245427,0.25771273,60170.0,60169.0,0.1575]
[1720010245672,0.25827187,60170.0,60169.0,0.1575]
[1720010245894,0.34945085,60170.0,60169.0,0.1575]
[1720010246146,0.11927187,60170.0,60169.0,0.3477988]
[1720010246424,0.11927187,60170.0,60169.0,0.35908607]
[1720010246668,0.1,60170.0,60169.0,0.35908607]
[1720010247147,0.1,60176.0,60175.0,0.03]
[1720010247372,0.11998904,60176.0,60175.0,0.3256988]
[1720010247606,0.1,60181.0,60176.0,0.03]
[1720010247837,0.01972054,60180.0,60179.0,0.03]
[1720010248109,0.01972054,60180.0,60179.0,0.38198607]
[1720010248343,0.01871273,60189.0,60179.0,0.3706988]
[1720010248574,0.01971904,60188.0,60180.0,0.1602988]
[1720010248816,0.2554,60190.0,60184.0,0.03]
[1720010248817,0.01971904,60187.0,60184.0,0.03]
[1720010249044,0.01971904,60186.0,60184.0,0.1902988]
[1720010249266,0.01971904,60185.0,60184.0,0.1902988]
[1720010249500,0.239,60190.0,60184.0,0.1902988]
[1720010249501,0.11971904,60189.0,60184.0,0.1902988]
[1720010249730,0.01971904,60188.0,60184.0,0.1902988]
[1720010250177,0.01971904,60188.0,60184.0,0.1602988]
[1720010250609,0.02025743,60187.0,60184.0,0.1602988]
[1720010250814,0.02034326,60186.0,60184.0,0.1612988]
[1720010251044,0.02034326,60185.0,60184.0,0.1612988]
[1720010251263,0.2593448,60185.0,60184.0,0.1602988]
[1720010251496,0.2593448,60185.0,60179.0,0.1804]
[1720010251497,0.01871273,60183.0,60179.0,0.1804]
[1720010251748,0.25771273,60180.0,60179.0,0.1602988]
[1720010251970,0.01871273,60179.0,60169.0,0.0165246]
[1720010252218,0.239,60174.0,60170.0,0.1351]
[1720010252440,0.339,60174.0,60171.0,0.03]
[1720010252675,0.11871273,60173.0,60170.0,0.1351]
[1720010253146,0.02027607,60172.0,60170.0,0.1351]
[1720010253382,0.01981915,60171.0,60170.0,0.1351]
[1720010254256,0.01981915,60171.0,60162.0,0.4880671]
[1720010254257,0.07628507,60171.0,60162.0,0.4880671]
[1720010254460,0.239,60166.0,60165.0,0.1293]
[1720010254666,0.35893248,60166.0,60165.0,0.2895988]
[1720010254868,0.339,60166.0,60165.0,0.2895988]
[1720010255756,0.35828264,60166.0,60163.0,0.1729]
[1720010255962,0.17569491,60165.0,60164.0,0.1602988]
[1720010256175,0.01871273,60164.0,60162.0,0.4715425]
[1720010256383,0.01928264,60163.0,60162.0,0.4715425]
[1720010257884,0.01928264,60163.0,60162.0,0.1622988]
[1720010258297,0.01928264,60163.0,60162.0,0.1922988]
[1720010258525,0.01928264,60163.0,60162.0,0.1622988]
[1720010258731,0.01928264,60163.0,60162.0,0.20458607]
[1720010258959,0.01928264,60163.0,60162.0,0.19662282]
[1720010259579,0.01928264,60163.0,60162.0,0.20791009]